[Event "Titled Tuesday Blitz April 4 Late 2023"]
[White "Vidit, Santosh Gujrathi"]
[Black "Urazayev, Arystanbek"]
[WhiteFideId "5029465"]
[BlackFideId "13709810"]
[WhiteElo "2651"]
[BlackElo "2449"]
[Result "1-0"]
[Round "04"]
[TimeControl "180+2"]
[Date "2023.04.04"]
[WhiteClock "0:00:06"]
[BlackClock "0:00:07"]

1. e4 {[%clk 0:03:00]}  c6 {[%clk 0:03:00]} 2. d4 {[%clk 0:03:00]}  d5 {[%clk 0:03:01]} 3. exd5 {[%clk 0:03:00]}  cxd5 {[%clk 0:03:02]} 4. Bd3 {[%clk 0:03:01]}  Nf6 {[%clk 0:03:02]} 5. c3 {[%clk 0:02:56]}  Bg4 {[%clk 0:03:02]} 6. Qb3 {[%clk 0:02:56]}  Qc7 {[%clk 0:03:03]} 7. h3 {[%clk 0:02:55]}  Bh5 {[%clk 0:03:03]} 8. Ne2 {[%clk 0:02:46]}  Bxe2 {[%clk 0:03:03]} 9. Bxe2 {[%clk 0:02:45]}  e6 {[%clk 0:03:04]} 10. O-O {[%clk 0:02:45]}  Bd6 {[%clk 0:03:02]} 11. Nd2 {[%clk 0:02:42]}  O-O {[%clk 0:03:02]} 12. Bd3 {[%clk 0:02:40]}  Nbd7 {[%clk 0:03:02]} 13. Nf3 {[%clk 0:02:39]}  Ne4 {[%clk 0:03:02]} 14. Bxe4 {[%clk 0:02:25]}  dxe4 {[%clk 0:03:02]} 15. Ng5 {[%clk 0:02:25]}  Nf6 {[%clk 0:02:27]} 16. Re1 {[%clk 0:02:24]}  e5 {[%clk 0:02:09]} 17. dxe5 {[%clk 0:02:23]}  Bxe5 {[%clk 0:02:09]} 18. Nxe4 {[%clk 0:02:23]}  Nxe4 {[%clk 0:02:08]} 19. Rxe4 {[%clk 0:02:23]}  Rfe8 {[%clk 0:02:08]} 20. Kf1 {[%clk 0:02:06]}  Bf6 {[%clk 0:01:35]} 21. Bf4 {[%clk 0:02:03]}  Qc6 {[%clk 0:01:35]} 22. Rxe8+ {[%clk 0:01:47]}  Rxe8 {[%clk 0:01:35]} 23. Rd1 {[%clk 0:01:46]}  h6 {[%clk 0:01:29]} 24. Be3 {[%clk 0:01:31]}  a5 {[%clk 0:01:15]} 25. Qd5 {[%clk 0:00:48]}  Qa6+ {[%clk 0:01:02]} 26. Qd3 {[%clk 0:00:48]}  Qe6 {[%clk 0:00:57]} 27. Qb5 {[%clk 0:00:47]}  Bg5 {[%clk 0:00:18]} 28. Re1 {[%clk 0:00:47]}  Qc8 {[%clk 0:00:10]} 29. Bxg5 {[%clk 0:00:41]}  Rxe1+ {[%clk 0:00:11]} 30. Kxe1 {[%clk 0:00:42]}  hxg5 {[%clk 0:00:12]} 31. Qxa5 {[%clk 0:00:37]}  g4 {[%clk 0:00:08]} 32. hxg4 {[%clk 0:00:33]}  Qxg4 {[%clk 0:00:09]} 33. Qd8+ {[%clk 0:00:31]}  Kh7 {[%clk 0:00:09]} 34. Qd5 {[%clk 0:00:30]}  Qf4 {[%clk 0:00:07]} 35. Ke2 {[%clk 0:00:12]}  b6 {[%clk 0:00:07]} 36. Qd3+ {[%clk 0:00:12]}  g6 {[%clk 0:00:07]} 37. Qd5 {[%clk 0:00:09]}  Kg8 {[%clk 0:00:05]} 38. g3 {[%clk 0:00:09]}  Qg4+ {[%clk 0:00:05]} 39. Kd2 {[%clk 0:00:08]}  Qa4 {[%clk 0:00:04]} 40. a3 {[%clk 0:00:08]}  b5 {[%clk 0:00:03]} 41. Qd4 {[%clk 0:00:08]}  Qa5 {[%clk 0:00:03]} 42. Kc2 {[%clk 0:00:08]}  Qa6 {[%clk 0:00:03]} 43. Kb3 {[%clk 0:00:08]}  Qc6 {[%clk 0:00:04]} 44. a4 {[%clk 0:00:08]}  bxa4+ {[%clk 0:00:04]} 45. Ka3 {[%clk 0:00:09]}  Qb5 {[%clk 0:00:04]} 46. Qb4 {[%clk 0:00:06]}  Qe2 {[%clk 0:00:05]} 47. Qc5 {[%clk 0:00:05]}  Qd1 {[%clk 0:00:04]} 48. Qc8+ {[%clk 0:00:03]}  Kg7 {[%clk 0:00:04]} 49. Qc4 {[%clk 0:00:03]}  Qa1+ {[%clk 0:00:05]} 50. Qa2 {[%clk 0:00:03]}  Qd1 {[%clk 0:00:04]} 51. Kb4 {[%clk 0:00:04]}  Qc2 {[%clk 0:00:05]} 52. c4 {[%clk 0:00:02]}  Qxf2 {[%clk 0:00:04]} 53. Kxa4 {[%clk 0:00:02]}  Qxg3 {[%clk 0:00:05]} 54. b4 {[%clk 0:00:02]}  g5 {[%clk 0:00:05]} 55. Qb2+ {[%clk 0:00:02]}  f6 {[%clk 0:00:05]} 56. b5 {[%clk 0:00:02]}  g4 {[%clk 0:00:06]} 57. b6 {[%clk 0:00:03]}  Qf4 {[%clk 0:00:05]} 58. Qb3 {[%clk 0:00:02]}  g3 {[%clk 0:00:05]} 59. b7 {[%clk 0:00:02]}  Qb8 {[%clk 0:00:06]} 60. Qf3 {[%clk 0:00:01]}  Qa7+ {[%clk 0:00:04]} 61. Kb5 {[%clk 0:00:02]}  Qb8 {[%clk 0:00:04]} 62. c5 {[%clk 0:00:02]}  f5 {[%clk 0:00:04]} 63. c6 {[%clk 0:00:03]}  Qe5+ {[%clk 0:00:04]} 64. Kb6 {[%clk 0:00:03]}  f4 {[%clk 0:00:05]} 65. Qg4+ {[%clk 0:00:02]}  Kf6 {[%clk 0:00:05]} 66. Qh4+ {[%clk 0:00:03]}  Kg7 {[%clk 0:00:04]} 67. Qg4+ {[%clk 0:00:03]}  Kf6 {[%clk 0:00:05]} 68. Qc8 {[%clk 0:00:02]}  Qd4+ {[%clk 0:00:04]} 69. Kc7 {[%clk 0:00:03]}  Qe5+ {[%clk 0:00:04]} 70. Kd7 {[%clk 0:00:03]}  g2 {[%clk 0:00:04]} 71. Qh8+ {[%clk 0:00:03]}  Kf5 {[%clk 0:00:04]} 72. Qxe5+ {[%clk 0:00:04]}  Kxe5 {[%clk 0:00:05]} 73. b8=Q+ {[%clk 0:00:04]}  Ke4 {[%clk 0:00:06]} 74. Qb4+ {[%clk 0:00:04]}  Kf3 {[%clk 0:00:05]} 75. Qb3+ {[%clk 0:00:04]}  Kg4 {[%clk 0:00:06]} 76. Qg8+ {[%clk 0:00:04]}  Kh3 {[%clk 0:00:05]} 77. c7 {[%clk 0:00:05]}  f3 {[%clk 0:00:06]} 78. c8=Q {[%clk 0:00:05]}  f2 {[%clk 0:00:06]} 79. Kd6+ {[%clk 0:00:06]}  Kh2 {[%clk 0:00:07]} 80. Qh7+ {[%clk 0:00:05]}  Kg1 {[%clk 0:00:07]} 81. Qc5 {[%clk 0:00:05]}  Kf1 {[%clk 0:00:08]} 82. Qd3+ {[%clk 0:00:05]}  Ke1 {[%clk 0:00:08]} 83. Qde3+ {[%clk 0:00:06]}  Kd1 {[%clk 0:00:07]} 84. Qcc1# {[%clk 0:00:06]} 1-0


[Site "https://www.chess.com"]

[Event "Titled Tuesday Blitz April 4 Late 2023"]
[White "Martinez Alcantara, Jose Eduardo"]
[Black "Pichot, Alan"]
[WhiteFideId "3805662"]
[BlackFideId "110973"]
[WhiteElo "2711"]
[BlackElo "2573"]
[Result "1-0"]
[Round "04"]
[TimeControl "180+2"]
[Date "2023.04.04"]
[WhiteClock "0:00:04"]
[BlackClock "0:00:01"]

1. e4 {[%clk 0:03:00]}  e5 {[%clk 0:03:00]} 2. Nf3 {[%clk 0:03:01]}  Nc6 {[%clk 0:03:00]} 3. Bb5 {[%clk 0:03:00]}  a6 {[%clk 0:03:00]} 4. Ba4 {[%clk 0:03:00]}  Nf6 {[%clk 0:03:01]} 5. d3 {[%clk 0:03:01]}  d6 {[%clk 0:02:59]} 6. c3 {[%clk 0:03:00]}  Be7 {[%clk 0:02:59]} 7. h3 {[%clk 0:03:01]}  O-O {[%clk 0:02:59]} 8. Be3 {[%clk 0:03:01]}  b5 {[%clk 0:02:56]} 9. Bc2 {[%clk 0:03:01]}  Re8 {[%clk 0:02:56]} 10. O-O {[%clk 0:03:00]}  Bf8 {[%clk 0:02:56]} 11. a4 {[%clk 0:02:57]}  b4 {[%clk 0:02:54]} 12. a5 {[%clk 0:02:53]}  d5 {[%clk 0:02:52]} 13. Bg5 {[%clk 0:02:50]}  dxe4 {[%clk 0:02:16]} 14. dxe4 {[%clk 0:02:51]}  h6 {[%clk 0:02:17]} 15. Be3 {[%clk 0:02:20]}  Qxd1 {[%clk 0:01:56]} 16. Rxd1 {[%clk 0:02:21]}  Bb7 {[%clk 0:01:32]} 17. Nbd2 {[%clk 0:02:20]}  bxc3 {[%clk 0:01:32]} 18. bxc3 {[%clk 0:02:20]}  Rad8 {[%clk 0:01:32]} 19. Rdb1 {[%clk 0:02:18]}  Bc8 {[%clk 0:01:32]} 20. Ba4 {[%clk 0:02:10]}  Bd7 {[%clk 0:01:32]} 21. Bd1 {[%clk 0:02:10]}  Rb8 {[%clk 0:01:29]} 22. Rxb8 {[%clk 0:02:08]}  Rxb8 {[%clk 0:01:12]} 23. Be2 {[%clk 0:02:08]}  Bc8 {[%clk 0:01:12]} 24. Bc4 {[%clk 0:01:55]}  Bd6 {[%clk 0:01:07]} 25. Ne1 {[%clk 0:01:52]}  Rb2 {[%clk 0:00:59]} 26. Kf1 {[%clk 0:01:32]}  Kf8 {[%clk 0:00:32]} 27. g4 {[%clk 0:01:17]}  Nd7 {[%clk 0:00:23]} 28. Ke2 {[%clk 0:00:58]}  Rb8 {[%clk 0:00:12]} 29. Nd3 {[%clk 0:00:58]}  Nd8 {[%clk 0:00:10]} 30. Kd1 {[%clk 0:00:49]}  Bb7 {[%clk 0:00:10]} 31. f3 {[%clk 0:00:49]}  Bc6 {[%clk 0:00:10]} 32. Kc2 {[%clk 0:00:49]}  Bb5 {[%clk 0:00:09]} 33. Bxb5 {[%clk 0:00:36]}  Rxb5 {[%clk 0:00:10]} 34. Nc4 {[%clk 0:00:36]}  Nc6 {[%clk 0:00:09]} 35. h4 {[%clk 0:00:34]}  Ke7 {[%clk 0:00:08]} 36. h5 {[%clk 0:00:34]}  Nd8 {[%clk 0:00:05]} 37. g5 {[%clk 0:00:33]}  hxg5 {[%clk 0:00:06]} 38. Bxg5+ {[%clk 0:00:33]}  f6 {[%clk 0:00:06]} 39. Be3 {[%clk 0:00:34]}  Ne6 {[%clk 0:00:06]} 40. Rg1 {[%clk 0:00:34]}  Rb8 {[%clk 0:00:07]} 41. Nxd6 {[%clk 0:00:25]}  Kxd6 {[%clk 0:00:05]} 42. Rd1 {[%clk 0:00:24]}  Ke7 {[%clk 0:00:05]} 43. Nb4 {[%clk 0:00:25]}  Rh8 {[%clk 0:00:05]} 44. Nxa6 {[%clk 0:00:20]}  Rxh5 {[%clk 0:00:05]} 45. Nb4 {[%clk 0:00:21]}  Rh2+ {[%clk 0:00:05]} 46. Kb3 {[%clk 0:00:16]}  Ndc5+ {[%clk 0:00:04]} 47. Kc4 {[%clk 0:00:13]}  Nb7 {[%clk 0:00:05]} 48. a6 {[%clk 0:00:08]}  Nd6+ {[%clk 0:00:05]} 49. Kb3 {[%clk 0:00:08]}  c5 {[%clk 0:00:05]} 50. a7 {[%clk 0:00:03]}  Rh8 {[%clk 0:00:05]} 51. Nd5+ {[%clk 0:00:03]}  Kf7 {[%clk 0:00:05]} 52. Nb6 {[%clk 0:00:03]}  c4+ {[%clk 0:00:06]} 53. Kc2 {[%clk 0:00:03]}  Nb5 {[%clk 0:00:01]} 54. a8=Q {[%clk 0:00:03]}  Rxa8 {[%clk 0:00:01]} 55. Nxa8 {[%clk 0:00:04]} 1-0


[Site "https://www.chess.com"]

[Event "Titled Tuesday Blitz April 4 Late 2023"]
[White "Abdrlauf, Elham"]
[Black "Klukin, Kirill"]
[WhiteFideId "1533533"]
[BlackFideId "24199273"]
[WhiteElo "2469"]
[BlackElo "2344"]
[Result "0-1"]
[Round "04"]
[TimeControl "180+2"]
[Date "2023.04.04"]
[WhiteClock "0:00:02"]
[BlackClock "0:00:25"]

1. e4 {[%clk 0:02:59]}  c5 {[%clk 0:02:59]} 2. Ne2 {[%clk 0:02:59]}  g6 {[%clk 0:02:59]} 3. g3 {[%clk 0:02:59]}  Bg7 {[%clk 0:02:59]} 4. Bg2 {[%clk 0:02:59]}  Nc6 {[%clk 0:02:59]} 5. c3 {[%clk 0:03:00]}  e6 {[%clk 0:02:59]} 6. d4 {[%clk 0:03:00]}  cxd4 {[%clk 0:02:59]} 7. cxd4 {[%clk 0:03:01]}  d5 {[%clk 0:03:00]} 8. exd5 {[%clk 0:03:00]}  exd5 {[%clk 0:03:00]} 9. Nbc3 {[%clk 0:03:00]}  Nge7 {[%clk 0:02:58]} 10. O-O {[%clk 0:03:01]}  O-O {[%clk 0:02:58]} 11. Be3 {[%clk 0:02:59]}  Bg4 {[%clk 0:02:55]} 12. h3 {[%clk 0:02:53]}  Bxe2 {[%clk 0:02:54]} 13. Qxe2 {[%clk 0:02:53]}  Nf5 {[%clk 0:02:53]} 14. Nxd5 {[%clk 0:02:49]}  Ncxd4 {[%clk 0:02:53]} 15. Bxd4 {[%clk 0:02:48]}  Nxd4 {[%clk 0:02:54]} 16. Qd3 {[%clk 0:02:46]}  Qd6 {[%clk 0:02:49]} 17. Rfe1 {[%clk 0:02:43]}  Rfe8 {[%clk 0:02:49]} 18. Rad1 {[%clk 0:02:40]}  Rad8 {[%clk 0:02:43]} 19. Kf1 {[%clk 0:02:36]}  Qc5 {[%clk 0:02:37]} 20. b4 {[%clk 0:02:31]}  Qd6 {[%clk 0:02:21]} 21. Re4 {[%clk 0:02:28]}  Rxe4 {[%clk 0:02:15]} 22. Qxe4 {[%clk 0:02:28]}  Qe5 {[%clk 0:02:07]} 23. Rc1 {[%clk 0:01:46]}  Ne6 {[%clk 0:01:41]} 24. Qxe5 {[%clk 0:01:23]}  Bxe5 {[%clk 0:01:41]} 25. b5 {[%clk 0:01:18]}  Kg7 {[%clk 0:01:33]} 26. a4 {[%clk 0:01:16]}  b6 {[%clk 0:01:32]} 27. f4 {[%clk 0:01:00]}  Bd6 {[%clk 0:01:30]} 28. Rc4 {[%clk 0:00:42]}  Bc5 {[%clk 0:01:22]} 29. Nc3 {[%clk 0:00:41]}  Rd2 {[%clk 0:01:16]} 30. Bd5 {[%clk 0:00:41]}  Nc7 {[%clk 0:00:41]} 31. Bc6 {[%clk 0:00:41]}  Rc2 {[%clk 0:00:38]} 32. a5 {[%clk 0:00:39]}  Ne6 {[%clk 0:00:36]} 33. Bd5 {[%clk 0:00:23]}  Nc7 {[%clk 0:00:36]} 34. Be4 {[%clk 0:00:13]}  Rc1+ {[%clk 0:00:33]} 35. Ke2 {[%clk 0:00:10]}  Nxb5 {[%clk 0:00:34]} 36. axb6 {[%clk 0:00:06]}  axb6 {[%clk 0:00:28]} 37. Kd2 {[%clk 0:00:06]}  Rxc3 {[%clk 0:00:28]} 38. Rxc3 {[%clk 0:00:07]}  Bb4 {[%clk 0:00:28]} 39. Kd3 {[%clk 0:00:04]}  Nxc3 {[%clk 0:00:29]} 40. Bc6 {[%clk 0:00:05]}  Ba5 {[%clk 0:00:29]} 41. g4 {[%clk 0:00:05]}  h6 {[%clk 0:00:29]} 42. h4 {[%clk 0:00:06]}  Nd1 {[%clk 0:00:29]} 43. Ke2 {[%clk 0:00:06]}  Nb2 {[%clk 0:00:26]} 44. Bb5 {[%clk 0:00:06]}  f5 {[%clk 0:00:22]} 45. gxf5 {[%clk 0:00:05]}  gxf5 {[%clk 0:00:23]} 46. h5 {[%clk 0:00:06]}  Kf6 {[%clk 0:00:23]} 47. Ke3 {[%clk 0:00:05]}  Bc3 {[%clk 0:00:23]} 48. Ke2 {[%clk 0:00:05]}  Ke6 {[%clk 0:00:23]} 49. Ke3 {[%clk 0:00:02]}  Bb4 {[%clk 0:00:23]} 50. Ke2 {[%clk 0:00:01]}  Kd6 {[%clk 0:00:24]} 51. Bd3 {[%clk 0:00:01]}  Nxd3 {[%clk 0:00:24]} 52. Kxd3 {[%clk 0:00:02]}  Kd5 {[%clk 0:00:25]} 0-1


[Site "https://www.chess.com"]

[Event "Titled Tuesday Blitz April 4 Late 2023"]
[White "Bolourchifard, Farzad"]
[Black "Kollars, Dmitrij"]
[WhiteFideId "12510084"]
[BlackFideId "12909572"]
[WhiteElo "2317"]
[BlackElo "2584"]
[Result "0-1"]
[Round "04"]
[TimeControl "180+2"]
[Date "2023.04.04"]
[WhiteClock "0:00:02"]
[BlackClock "0:00:05"]

1. e4 {[%clk 0:03:00]}  e5 {[%clk 0:02:58]} 2. Nf3 {[%clk 0:03:01]}  Nc6 {[%clk 0:02:58]} 3. Bc4 {[%clk 0:03:01]}  Nf6 {[%clk 0:02:57]} 4. d3 {[%clk 0:03:02]}  Be7 {[%clk 0:02:57]} 5. O-O {[%clk 0:03:02]}  O-O {[%clk 0:02:58]} 6. Re1 {[%clk 0:03:01]}  d6 {[%clk 0:02:58]} 7. c3 {[%clk 0:03:01]}  Na5 {[%clk 0:02:58]} 8. Bb5 {[%clk 0:03:01]}  a6 {[%clk 0:02:58]} 9. Ba4 {[%clk 0:03:02]}  c5 {[%clk 0:02:59]} 10. Nbd2 {[%clk 0:03:00]}  b5 {[%clk 0:02:59]} 11. Bc2 {[%clk 0:03:00]}  Nc6 {[%clk 0:03:00]} 12. Nf1 {[%clk 0:03:00]}  Be6 {[%clk 0:02:56]} 13. h3 {[%clk 0:03:00]}  h6 {[%clk 0:02:56]} 14. d4 {[%clk 0:02:57]}  cxd4 {[%clk 0:02:54]} 15. cxd4 {[%clk 0:02:58]}  exd4 {[%clk 0:02:54]} 16. Nxd4 {[%clk 0:02:58]}  Nxd4 {[%clk 0:02:53]} 17. Qxd4 {[%clk 0:02:58]}  Rc8 {[%clk 0:02:53]} 18. Bb3 {[%clk 0:02:56]}  d5 {[%clk 0:02:52]} 19. exd5 {[%clk 0:02:45]}  Nxd5 {[%clk 0:02:41]} 20. Bd2 {[%clk 0:02:27]}  Bf6 {[%clk 0:02:38]} 21. Qa7 {[%clk 0:02:13]}  Qd6 {[%clk 0:02:32]} 22. Rac1 {[%clk 0:01:43]}  Bxb2 {[%clk 0:02:19]} 23. Rxc8 {[%clk 0:01:42]}  Rxc8 {[%clk 0:02:20]} 24. Ba5 {[%clk 0:01:30]}  Qc6 {[%clk 0:02:12]} 25. Ne3 {[%clk 0:01:20]}  Ra8 {[%clk 0:01:48]} 26. Bxd5 {[%clk 0:01:15]}  Bxd5 {[%clk 0:01:45]} 27. Qb6 {[%clk 0:01:13]}  Qxb6 {[%clk 0:01:39]} 28. Bxb6 {[%clk 0:01:14]}  Be6 {[%clk 0:01:40]} 29. Ba5 {[%clk 0:00:58]}  Rc8 {[%clk 0:01:36]} 30. Re2 {[%clk 0:00:36]}  Rc1+ {[%clk 0:01:36]} 31. Kh2 {[%clk 0:00:34]}  Be5+ {[%clk 0:01:15]} 32. g3 {[%clk 0:00:34]}  Ra1 {[%clk 0:01:15]} 33. f4 {[%clk 0:00:28]}  Bf6 {[%clk 0:01:07]} 34. Ng4 {[%clk 0:00:17]}  Bd4 {[%clk 0:01:00]} 35. Ne5 {[%clk 0:00:06]}  Bd5 {[%clk 0:00:26]} 36. g4 {[%clk 0:00:03]}  f6 {[%clk 0:00:26]} 37. Nd7 {[%clk 0:00:02]}  Kf7 {[%clk 0:00:14]} 38. Bb4 {[%clk 0:00:02]}  Rxa2 {[%clk 0:00:10]} 39. Rxa2 {[%clk 0:00:02]}  Bxa2 {[%clk 0:00:11]} 40. Nb8 {[%clk 0:00:03]}  Ke6 {[%clk 0:00:09]} 41. Nxa6 {[%clk 0:00:03]}  Kd5 {[%clk 0:00:09]} 42. Bf8 {[%clk 0:00:02]}  Kc4 {[%clk 0:00:07]} 43. Bxg7 {[%clk 0:00:02]}  h5 {[%clk 0:00:05]} 44. gxh5 {[%clk 0:00:02]}  Bb1 {[%clk 0:00:05]} 45. h6 {[%clk 0:00:02]}  b4 {[%clk 0:00:05]} 0-1


[Site "https://www.chess.com"]

[Event "Titled Tuesday Blitz April 4 Late 2023"]
[White "Beerdsen, Thomas"]
[Black "Zakhartsov, Vladimir"]
[WhiteFideId "1030108"]
[BlackFideId "4145097"]
[WhiteElo "2547"]
[BlackElo "2497"]
[Result "1-0"]
[Round "04"]
[TimeControl "180+2"]
[Date "2023.04.04"]
[WhiteClock "0:00:11"]
[BlackClock "0:00:08"]

1. e4 {[%clk 0:03:00]}  c5 {[%clk 0:03:00]} 2. Nf3 {[%clk 0:03:00]}  d6 {[%clk 0:03:00]} 3. d4 {[%clk 0:03:01]}  cxd4 {[%clk 0:03:01]} 4. Nxd4 {[%clk 0:03:02]}  Nf6 {[%clk 0:03:02]} 5. Nc3 {[%clk 0:03:03]}  g6 {[%clk 0:03:02]} 6. h3 {[%clk 0:03:02]}  Bg7 {[%clk 0:03:02]} 7. Nf3 {[%clk 0:03:03]}  Nc6 {[%clk 0:03:01]} 8. Bc4 {[%clk 0:03:04]}  O-O {[%clk 0:03:00]} 9. O-O {[%clk 0:03:04]}  Bd7 {[%clk 0:02:59]} 10. Bg5 {[%clk 0:03:04]}  Rc8 {[%clk 0:02:59]} 11. Qe2 {[%clk 0:03:05]}  Qa5 {[%clk 0:02:53]} 12. Rad1 {[%clk 0:03:04]}  Ne5 {[%clk 0:02:45]} 13. Nxe5 {[%clk 0:02:58]}  Qxe5 {[%clk 0:02:45]} 14. Bh4 {[%clk 0:02:52]}  Qc5 {[%clk 0:02:40]} 15. Bb3 {[%clk 0:02:44]}  Rfe8 {[%clk 0:02:35]} 16. e5 {[%clk 0:02:43]}  Nh5 {[%clk 0:02:23]} 17. exd6 {[%clk 0:02:32]}  e6 {[%clk 0:02:12]} 18. Ne4 {[%clk 0:02:28]}  Qe5 {[%clk 0:02:11]} 19. c3 {[%clk 0:02:05]}  Bb5 {[%clk 0:01:45]} 20. c4 {[%clk 0:01:59]}  Bd7 {[%clk 0:01:45]} 21. Qe3 {[%clk 0:01:56]}  f5 {[%clk 0:01:33]} 22. Nc3 {[%clk 0:01:45]}  Qxe3 {[%clk 0:01:26]} 23. fxe3 {[%clk 0:01:46]}  Bxc3 {[%clk 0:01:23]} 24. bxc3 {[%clk 0:01:46]}  Kg7 {[%clk 0:01:20]} 25. e4 {[%clk 0:01:37]}  Nf6 {[%clk 0:01:16]} 26. e5 {[%clk 0:01:28]}  Ne4 {[%clk 0:01:16]} 27. Rd3 {[%clk 0:01:17]}  Rc5 {[%clk 0:01:09]} 28. Rb1 {[%clk 0:01:02]}  Rxe5 {[%clk 0:01:06]} 29. Ba4 {[%clk 0:00:58]}  b5 {[%clk 0:00:35]} 30. Bxb5 {[%clk 0:00:58]}  Rb8 {[%clk 0:00:34]} 31. Rb4 {[%clk 0:00:44]}  Rb7 {[%clk 0:00:31]} 32. Ba6 {[%clk 0:00:38]}  Rb6 {[%clk 0:00:27]} 33. Rxb6 {[%clk 0:00:39]}  axb6 {[%clk 0:00:28]} 34. Bb5 {[%clk 0:00:40]}  Nc5 {[%clk 0:00:26]} 35. Rd1 {[%clk 0:00:38]}  Kf7 {[%clk 0:00:25]} 36. Bf2 {[%clk 0:00:33]}  Ke8 {[%clk 0:00:25]} 37. Rb1 {[%clk 0:00:17]}  Re2 {[%clk 0:00:21]} 38. Bxd7+ {[%clk 0:00:14]}  Kxd7 {[%clk 0:00:17]} 39. Rxb6 {[%clk 0:00:10]}  Nd3 {[%clk 0:00:17]} 40. Bh4 {[%clk 0:00:07]}  Nc5 {[%clk 0:00:07]} 41. Be7 {[%clk 0:00:06]}  Rd2 {[%clk 0:00:06]} 42. Rb5 {[%clk 0:00:06]}  Ne4 {[%clk 0:00:06]} 43. Rb7+ {[%clk 0:00:06]}  Kc6 {[%clk 0:00:06]} 44. Rc7+ {[%clk 0:00:07]}  Kb6 {[%clk 0:00:07]} 45. c5+ {[%clk 0:00:07]}  Kb5 {[%clk 0:00:05]} 46. c6 {[%clk 0:00:07]}  Nxd6 {[%clk 0:00:04]} 47. Bxd6 {[%clk 0:00:02]}  Rxd6 {[%clk 0:00:03]} 48. Rxh7 {[%clk 0:00:03]}  Rxc6 {[%clk 0:00:03]} 49. Rh6 {[%clk 0:00:03]}  e5 {[%clk 0:00:03]} 50. h4 {[%clk 0:00:03]}  e4 {[%clk 0:00:01]} 51. h5 {[%clk 0:00:04]}  gxh5 {[%clk 0:00:01]} 52. Rxh5 {[%clk 0:00:05]}  Rc5 {[%clk 0:00:01]} 53. Kf2 {[%clk 0:00:05]}  Kc4 {[%clk 0:00:01]} 54. Ke3 {[%clk 0:00:05]}  Kxc3 {[%clk 0:00:02]} 55. g4 {[%clk 0:00:06]}  f4+ {[%clk 0:00:02]} 56. Kxf4 {[%clk 0:00:06]}  Rc4 {[%clk 0:00:03]} 57. Ke3 {[%clk 0:00:06]}  Ra4 {[%clk 0:00:03]} 58. Rc5+ {[%clk 0:00:05]}  Kb4 {[%clk 0:00:03]} 59. Rc2 {[%clk 0:00:05]}  Kb5 {[%clk 0:00:03]} 60. g5 {[%clk 0:00:06]}  Kb6 {[%clk 0:00:03]} 61. g6 {[%clk 0:00:06]}  Kb7 {[%clk 0:00:02]} 62. g7 {[%clk 0:00:06]}  Ra8 {[%clk 0:00:03]} 63. Rg2 {[%clk 0:00:05]}  Rg8 {[%clk 0:00:03]} 64. Kxe4 {[%clk 0:00:06]}  Kc6 {[%clk 0:00:04]} 65. Kf5 {[%clk 0:00:06]}  Kd7 {[%clk 0:00:05]} 66. Kg6 {[%clk 0:00:07]}  Ke6 {[%clk 0:00:05]} 67. Kh7 {[%clk 0:00:07]}  Rxg7+ {[%clk 0:00:03]} 68. Rxg7 {[%clk 0:00:07]}  Kd6 {[%clk 0:00:04]} 69. Rb7 {[%clk 0:00:08]}  Kc5 {[%clk 0:00:05]} 70. Rb1 {[%clk 0:00:09]}  Kc6 {[%clk 0:00:06]} 71. a4 {[%clk 0:00:09]}  Kc5 {[%clk 0:00:07]} 72. a5 {[%clk 0:00:10]}  Kc6 {[%clk 0:00:08]} 73. a6 {[%clk 0:00:11]} 1-0


[Site "https://www.chess.com"]

[Event "Titled Tuesday Blitz April 4 Late 2023"]
[White "Makarian, Rudik"]
[Black "Bellahcene, Bilel"]
[WhiteFideId "44105681"]
[BlackFideId "696358"]
[WhiteElo "2430"]
[BlackElo "2566"]
[Result "1-0"]
[Round "04"]
[TimeControl "180+2"]
[Date "2023.04.04"]
[WhiteClock "0:00:27"]
[BlackClock "0:00:05"]

1. d4 {[%clk 0:03:00]}  e6 {[%clk 0:02:58]} 2. c4 {[%clk 0:03:01]}  b6 {[%clk 0:02:52]} 3. Nf3 {[%clk 0:03:01]}  Bb7 {[%clk 0:02:51]} 4. g3 {[%clk 0:02:59]}  Bxf3 {[%clk 0:02:50]} 5. exf3 {[%clk 0:03:00]}  Bb4+ {[%clk 0:02:49]} 6. Nc3 {[%clk 0:02:56]}  Bxc3+ {[%clk 0:02:49]} 7. bxc3 {[%clk 0:02:56]}  Nf6 {[%clk 0:02:48]} 8. g4 {[%clk 0:02:54]}  d6 {[%clk 0:02:35]} 9. f4 {[%clk 0:02:50]}  Nc6 {[%clk 0:02:35]} 10. Bg2 {[%clk 0:02:45]}  Na5 {[%clk 0:02:35]} 11. g5 {[%clk 0:02:30]}  Nd7 {[%clk 0:02:35]} 12. Qe2 {[%clk 0:02:19]}  O-O {[%clk 0:02:34]} 13. h4 {[%clk 0:02:03]}  c6 {[%clk 0:02:22]} 14. h5 {[%clk 0:01:58]}  Re8 {[%clk 0:02:17]} 15. Kf1 {[%clk 0:01:51]}  d5 {[%clk 0:02:16]} 16. cxd5 {[%clk 0:01:48]}  cxd5 {[%clk 0:02:16]} 17. Rh3 {[%clk 0:01:48]}  Rc8 {[%clk 0:02:13]} 18. Bd2 {[%clk 0:01:43]}  Nc4 {[%clk 0:02:13]} 19. Re1 {[%clk 0:01:42]}  Nd6 {[%clk 0:02:11]} 20. Bf3 {[%clk 0:01:29]}  Nf5 {[%clk 0:02:11]} 21. Bg4 {[%clk 0:01:27]}  Nf8 {[%clk 0:02:06]} 22. Kg2 {[%clk 0:01:24]}  Qd7 {[%clk 0:01:32]} 23. Kh1 {[%clk 0:01:21]}  Red8 {[%clk 0:01:09]} 24. h6 {[%clk 0:01:04]}  Ng6 {[%clk 0:00:54]} 25. hxg7 {[%clk 0:00:58]}  Nxg7 {[%clk 0:00:53]} 26. Kg2 {[%clk 0:00:56]}  Qd6 {[%clk 0:00:51]} 27. Qf3 {[%clk 0:00:49]}  Nf8 {[%clk 0:00:46]} 28. Reh1 {[%clk 0:00:48]}  Nf5 {[%clk 0:00:33]} 29. Qd3 {[%clk 0:00:42]}  Qd7 {[%clk 0:00:26]} 30. Rh5 {[%clk 0:00:41]}  b5 {[%clk 0:00:24]} 31. Qh3 {[%clk 0:00:39]}  b4 {[%clk 0:00:24]} 32. Rxh7 {[%clk 0:00:35]}  Nxh7 {[%clk 0:00:15]} 33. Qxh7+ {[%clk 0:00:35]}  Kf8 {[%clk 0:00:15]} 34. Bxf5 {[%clk 0:00:33]}  bxc3 {[%clk 0:00:11]} 35. Bc1 {[%clk 0:00:32]}  Qd6 {[%clk 0:00:09]} 36. g6 {[%clk 0:00:29]}  fxg6 {[%clk 0:00:05]} 37. Qh8+ {[%clk 0:00:27]} 1-0


[Site "https://www.chess.com"]